Cogmind - Beta 17 @@@ ROGUE MODE // 2026.08.02 @ 17:37:04 Player: Suffixing Result: Destroyed by D-53 Grenadier with Mini Grenade Launcher Performance ------------- Evolutions (0) 0 Regions Visited (4) 800 Robots Destroyed (19) 95 Value Destroyed (306) 306 Prototype IDs (28) 560 Alien Tech Used (0) 0 Bonus (335) 335 TOTAL SCORE: 2096 Bonus ------- Follower Combat Kills 35 Aligned with FarCom 300 Cogmind --------- Core Integrity 0/250 Matter 292/300 Energy 99/100 System Corruption 0% Temperature Cool (0) Movement Core (400) Ox7 Location -9/Mines Parts ------- > --- POWER (1) -------- (None) > --- PROPULSION (2) --- (None) > --- UTILITY (2) ------ Large Storage Unit > --- WEAPON (2) ------- Shotgun > --- INVENTORY (15) --- Ion Engine Light Nuclear Core Light Treads Light Treads Wheel Improved Flight Unit Improved Flight Unit Improved Flight Unit Improved Flight Unit Cloak of Protection Hacking Suite Shotgun Shotgun Rocket Launcher Peak State ------------ > --- POWER ------------ Ion Engine > --- PROPULSION ------- Light Treads Light Treads > --- UTILITY ---------- Improved Heat Sink Large Storage Unit > --- WEAPON ----------- Shotgun Shotgun > --- INVENTORY -------- Ion Engine Light Nuclear Core Light Treads Wheel Improved Flight Unit Improved Flight Unit Improved Flight Unit Improved Flight Unit Cloak of Protection Hacking Suite Shotgun Shotgun [Rating: 14] Favorites ----------- Power Ion Engine Engine Ion Engine Power Core Light Nuclear Core Propulsion Light Treads Treads Light Treads Leg Aluminum Leg Utility Large Storage Unit Device Improved Heat Sink Storage Large Storage Unit Weapon Shotgun Energy Gun Small Laser Ballistic Gun Shotgun Ballistic Cannon Light Cannon Launcher Rocket Launcher Build | -11 -10 -10 -10 -9 ------- Run | Yrd Mat Min Exi Min Slots Evolved . | . . . . . Power . | . . . . . Propulsion . | . . . . . Utility . | . . . . . Weapon . | . . . . . Parts Attached 12 | 2 7 . . 3 Power 2 | . 1 . . 1 Engine 1 | . 1 . . . Core 1 | . . . . 1 Reactor . | . . . . . Propulsion 2 | 2 . . . . Treads 2 | 2 . . . . Leg . | . . . . . Wheel . | . . . . . Hover . | . . . . . Flight . | . . . . . Utility 2 | . 2 . . . Device 1 | . 1 . . . Storage 1 | . 1 . . . Processor . | . . . . . Hackware . | . . . . . Protection . | . . . . . Artifact . | . . . . . Weapon 6 | . 4 . . 2 Energy Gun . | . . . . . Energy Cannon . | . . . . . Ballistic Gun 3 | . 2 . . 1 Ballistic Cannon 2 | . 2 . . . Launcher 1 | . . . . 1 Special Weapon . | . . . . . Impact Weapon . | . . . . . Slashing Weapon . | . . . . . Piercing Weapon . | . . . . . Special Melee Weapon . | . . . . . Unidentified Prototypes . | . . . . . Parts Lost 7 | . 1 . . 6 Power 3 | . 1 . . 2 Propulsion 2 | . . . . 2 Utility 1 | . . . . 1 Weapon 1 | . . . . 1 Highest Loss Streak 4 | . 1 . . 4 To Critical Strikes . | . . . . . Average Backups 10 | 3 7 11 11 13 Power 1 | 1 . 2 2 2 Propulsion 5 | 2 3 6 6 6 Utility 1 | . . 1 1 2 Weapon 2 | . 2 2 2 2 Tool/Special . | . . . . . Unused Backups 22 | . 10 . . 12 Power 3 | . 1 . . 2 Propulsion 8 | . 1 . . 7 Utility 4 | . 2 . . 2 Weapon 7 | . 6 . . 1 Tool/Special . | . . . . . Average Slot Usage (%) 91 | . 84 100 100 90 Engine 11 | . 13 14 14 6 Core 2 | . . . . 7 Treads 27 | . 28 28 28 27 Device 6 | . . 14 14 5 Storage 14 | . 14 14 14 14 Energy Gun 4 | . 13 . . . Ballistic Gun 19 | . 5 28 28 23 Ballistic Cannon 2 | . 8 . . . Launcher 1 | . . . . 4 Peak Build Rating 14 | 6 13 13 14 14 Average Rating 11 | 6 7 13 13 13 On Entrance 10 | 6 6 13 13 14 Avg Prop Armor Cover (%) . | . . . . . Naked Turns . | . . . . . Heaviest Build 33 | 10 32 32 32 33 Greatest Support 40 | 40 40 40 40 40 Greatest Overweight (x) . | . . . . . Average Overweight (x) . | . . . . . Largest Inventory Capacity 15 | 8 15 15 15 15 Average Capacity 14 | 8 13 15 15 15 Most Carried 15 | 5 15 11 12 14 Average Carried 10 | 2 7 11 11 13 Final Capacity 15 | 8 15 15 15 15 Final Carried 14 | 2 11 11 12 14 Class Distribution -------------------- 100% | Mutant Dominant Class ---------------- Mutant | -10/Materials Mutant | -10/Mines Mutant | -10/Exiles Mutant | -9/Mines Resources | -11 -10 -10 -10 -9 ----------- Run | Yrd Mat Min Exi Min Matter Collected 655 | 207 194 21 . 233 Remotely . | . . . . . Salvage Created 516 | . 420 22 . 74 Parts 38 | . 34 1 . 3 Haulers Intercepted 2 | . 2 . . . Recyclers Shooed 1 | . 1 . . . Parts Field Recycled . | . . . . . Retrieved Matter . | . . . . . Parts Self-Destructed . | . . . . . Prevented . | . . . . . Parts Restored . | . . . . . Kills | -11 -10 -10 -10 -9 ------- Run | Yrd Mat Min Exi Min Combat Hostiles Destroyed 29 | . 11 1 . 17 Guns 9 | . 6 1 . 2 Cannons 5 | . 5 . . . AOE 15 | . . . . 15 Classes Destroyed 8 | . 6 1 . 1 Worker 1 | . 1 . . . Builder 1 | . 1 . . . Tunneler 2 | . . 1 . 1 Hauler 2 | . 2 . . . Operator 1 | . 1 . . . Swarmer 7 | . 6 1 . . Grunt 5 | . 5 . . . Assembled 17 | . . . . 17 Best Kill Streak 15 | . 4 1 . 15 Combat Bots Only 15 | . 3 1 . 15 Max Kills in Single Turn 3 | . 1 1 . 3 Gunslinging . | . . . . . Exploded 3 | . . . . 3 Melee . | . . . . . Uniques/NPCs Destroyed . | . . . . . Combat | -11 -10 -10 -10 -9 -------- Run | Yrd Mat Min Exi Min Hostile Shots Fired 88 | . 48 6 . 34 Missed 22 | . 12 1 . 9 Hits 66 | . 36 5 . 25 Melee 3 | . . . . 3 Projectile 63 | . 36 5 . 22 AOE 9 | . . . . 9 Critical Strikes 1 | . 1 . . . Part Disruptions 1 | . . . . 1 Damage Taken 1138 | . 408 46 . 684 Core 261 | . 100 . . 161 Absorbed by Shields . | . . . . . Core Remaining (%) 100 | 100 . . . . Volleys Fired 74 | . 47 2 . 25 Largest 2 | . 2 2 . 2 Hottest 80 | . 80 46 . 46 Shots Fired 132 | . 94 4 . 34 Gun 91 | . 68 4 . 19 Cannon 26 | . 26 . . . Launcher 15 | . . . . 15 Special . | . . . . . Kinetic 55 | . 32 4 . 19 Thermal 62 | . 62 . . . Explosive 15 | . . . . 15 Electromagnetic . | . . . . . Robot Hit Streak 7 | . 7 1 . 4 Robot Miss Streak 6 | . 5 5 . 6 Penetration Max . | . . . . . Secondary Targets . | . . . . . Shots Hit Robots 72 | . 54 2 . 16 Core Hits 60 | . 24 2 . 34 Critical Kills . | . . . . . Critical Parts Destroyed . | . . . . . Critical Strikes 1 | . 1 . . . Blast 1 | . 1 . . . Melee Attacks . | . . . . . Impact . | . . . . . Slashing . | . . . . . Piercing . | . . . . . Sneak Attacks . | . . . . . Combat Hostiles . | . . . . . Follow-up Attacks . | . . . . . Damage Inflicted 1904 | . 704 42 . 1158 Guns 674 | . 520 22 . 132 Cannons 182 | . 182 . . . Explosions 1011 | . . . . 1011 Melee . | . . . . . Ramming 37 | . 2 20 . 15 Kinetic 409 | . 255 22 . 132 Thermal 447 | . 447 . . . Explosive 1011 | . . . . 1011 Electromagnetic . | . . . . . Impact . | . . . . . Slashing . | . . . . . Piercing . | . . . . . Highest Corruption . | . . . . . Average Corruption . | . . . . . Corruption Purged . | . . . . . Corruption Blocked . | . . . . . Overload Shots . | . . . . . Overflow Damage 20 | . . . . 20 Projectiles . | . . . . . Explosions 20 | . . . . 20 Melee . | . . . . . Knockbacks 1 | . 1 . . . Impact . | . . . . . Kinetic 1 | . 1 . . . Secondary . | . . . . . Self-Inflicted Damage 30 | . . . . 30 Shots 1 | . . . . 1 Rammed 6 | . 2 3 . 1 Targets Rammed 6 | . 2 3 . 1 Kicked . | . . . . . Crushed . | . . . . . Highest Temperature 223 | . 223 . . 1 Average Temperature 70 | . 71 . . 1 Received Heat Transfer 199 | . 159 . . 40 Siege Activations . | . . . . . Martial Activations . | . . . . . Shielding Activations . | . . . . . Robots Disrupted . | . . . . . Combat Hostiles . | . . . . . Robots Corrupted . | . . . . . Combat Hostiles . | . . . . . Parts Fried . | . . . . . Impact Corruptions . | . . . . . Robots Melted . | . . . . . Combat Hostiles . | . . . . . Parts Melted 2 | . 2 . . . Heat Transferred 1025 | . 1025 . . . Parts Sabotaged . | . . . . . Parts Stolen . | . . . . . Parts Stripped . | . . . . . Power Chain Reactions . | . . . . . Alert | -11 -10 -10 -10 -9 ------- Run | Yrd Mat Min Exi Min Maximum Alert Level . | . . . . . Low Security (%) 100 | 100 100 100 . 100 Level 1 . | . . . . . Level 2 . | . . . . . Level 3 . | . . . . . Level 4 . | . . . . . Level 5 . | . . . . . High Security . | . . . . . Max Security . | . . . . . Peak Influence 107 | . 107 73 . 35 Initial 6 | . . 6 . . Average 12 | . 23 9 . 2 Influence Increases 599 | . 315 164 . 120 Destroy 0b10 Robot/C 340 | . 220 120 . . Destroy 0b10 Robot/NC 35 | . 25 5 . 5 Destroy Leader 74 | . 54 20 . . Allied During Kill 19 | . . 19 . . Successful Hack 15 | . 15 . . . Destroy Structure 71 | . 1 . . 70 Lose Combat Pursuer 45 | . . . . 45 Influence Decreases 599 | . 297 182 . 120 Entered New Map 12 | . . 12 . . Time Decay 502 | . 292 110 . 100 Lost Part 25 | . 5 . . 20 Lost Ally 60 | . . 60 . . Squads Dispatched 1 | . 1 . . . Investigation . | . . . . . Extermination . | . . . . . Reinforcement 1 | . 1 . . . Assault . | . . . . . Garrison . | . . . . . Intercept . | . . . . . Searches Triggered . | . . . . . Construction Impeded . | . . . . . Haulers Reinforced . | . . . . . Active Scanning Responses . | . . . . . Cargo Convoy Interrupts . | . . . . . Stealth | -11 -10 -10 -10 -9 --------- Run | Yrd Mat Min Exi Min Distress Signals 2 | . 2 . . . Communications Jammed . | . . . . . Distress Signals . | . . . . . Times Spotted 54 | . 28 6 . 20 Peak Tracking Total 8 | . 5 3 . 8 Tactical Retreats 2 | . . . . 2 Traps | -11 -10 -10 -10 -9 ------- Run | Yrd Mat Min Exi Min Traps Triggered . | . . . . . Indirectly . | . . . . . Trap Hack Attempts . | . . . . . Triggered . | . . . . . Disarmed . | . . . . . Reprogrammed . | . . . . . Reused . | . . . . . Traps Extracted . | . . . . . Installed . | . . . . . Triggered . | . . . . . Machines | -11 -10 -10 -10 -9 ---------- Run | Yrd Mat Min Exi Min Machines Disabled . | . . . . . Max in Single Turn . | . . . . . Machines Repaired . | . . . . . Machines Dismantled . | . . . . . Machines Sabotaged . | . . . . . Overloaded Fab Kills . | . . . . . Hacking | -11 -10 -10 -10 -9 --------- Run | Yrd Mat Min Exi Min Machines Accessed 6 | . 5 . 1 . Terminals 5 | . 5 . . . Fabricators . | . . . . . Repair Stations . | . . . . . Recycling Units . | . . . . . Scanalyzers . | . . . . . Garrison Access . | . . . . . Total Hacks 11 | . 10 . 1 . Successful 5 | . 4 . 1 . Failed 6 | . 6 . . . Catastrophic . | . . . . . Database Lockouts . | . . . . . Manual 1 | . . . 1 . Terminals 10 | . 10 . . . Fabricators . | . . . . . Repair Stations . | . . . . . Recycling Units . | . . . . . Scanalyzers . | . . . . . Garrison Access . | . . . . . Terminal Hacks 5 | . 4 . 1 . Prototype ID Bank 4 | . 4 . . . Proto ID Catalog 1 | . . . 1 . Fabricator Hacks . | . . . . . Repair Station Hacks . | . . . . . Recycling Unit Hacks . | . . . . . Scanalyzer . | . . . . . Garrison Access Hacks . | . . . . . Unauthorized Hacks . | . . . . . Terminals . | . . . . . Fabricators . | . . . . . Repair Stations . | . . . . . Recycling Units . | . . . . . Scanalyzers . | . . . . . Garrison Access . | . . . . . Data Cores Recovered . | . . . . . Used . | . . . . . Hacking Detections 5 | . 5 . . . Full Trace Events . | . . . . . Feedback Events . | . . . . . Feedback Blocked . | . . . . . Robot Schematics Acquired . | . . . . . Robots Built . | . . . . . Authchips . | . . . . . Time . | . . . . . Total Robot Build Rating . | . . . . . Part Schematics Acquired . | . . . . . Parts Built . | . . . . . Authchips . | . . . . . Time . | . . . . . Total Part Build Rating . | . . . . . Part Studies Acquired . | . . . . . Parts Repaired . | . . . . . Time . | . . . . . Parts Recycled . | . . . . . Recycled Matter . | . . . . . Retrieved Matter . | . . . . . Retrieved Components . | . . . . . Parts Scanalyzed . | . . . . . Part Schematics Acquired . | . . . . . Parts Damaged . | . . . . . Bothacking | -11 -10 -10 -10 -9 ------------ Run | Yrd Mat Min Exi Min Used RIF Installer . | . . . . . Robots Hacked . | . . . . . Non-combat . | . . . . . Combat . | . . . . . Robot Hacks Applied . | . . . . . Relay Couplers Released . | . . . . . Fabnet Peak Effective % . | . . . . . Robots Rewired . | . . . . . Allies Hacked . | . . . . . Hacks Repelled . | . . . . . Allies | -11 -10 -10 -10 -9 -------- Run | Yrd Mat Min Exi Min Total Allies 4 | . . 4 . . Largest Group 4 | . . 4 . . Highest-Rated Group 70 | . . 70 . . Highest-Rated Ally 31 | . . 31 . . Total Orders . | . . . . . Ally Attacks 26 | . . 26 . . Total Damage 342 | . . 342 . . Kills 6 | . . 6 . . Allies Corrupted . | . . . . . Allies Melted . | . . . . . Intel | -11 -10 -10 -10 -9 ------- Run | Yrd Mat Min Exi Min Active Infowar (turns) . | . . . . . Robot Analysis Total . | . . . . . Derelict Logs Recovered 3 | . . 2 . 1 Drone Launches . | . . . . . Drone Recoveries . | . . . . . Exploration | -11 -10 -10 -10 -9 ------------- Run | Yrd Mat Min Exi Min Turns Passed 3880 | 12 1295 944 336 1293 Spaces Moved 2073 | 5 688 564 210 606 Core . | . . . . . Treads 2073 | 5 688 564 210 606 Legs . | . . . . . Wheels . | . . . . . Hover . | . . . . . Flight . | . . . . . Fastest Speed 160 | 160 160 160 160 160 Average Speed 160 | 160 160 160 160 160 Slowest Speed 160 | 160 160 160 160 160 Overloaded Moves . | . . . . . Propulsion Burnouts . | . . . . . Robots Hopped . | . . . . . Potential Cave-ins . | . . . . . Cave-ins Triggered . | . . . . . Exploration Rate (%) 67 | 2 95 98 61 82 Regions Visited 4 Branch Regions 3 Pre-discovered Areas 1 | . . . . 1 Known Exits Taken . | . . . . . Unknown Exits Taken 4 | 1 1 1 1 . Scrap Searched 2 | . . 2 . . Spaces Dug . | . . . . . Terrain Destroyed 106 | . . . . 106 Melee . | . . . . . Projectile . | . . . . . AOE 106 | . . . . 106 Terrain Rammed . | . . . . . Walls Destroyed . | . . . . . Machines Disabled . | . . . . . Actions | -11 -10 -10 -10 -9 --------- Run | Yrd Mat Min Exi Min Total 2507 | 10 792 600 210 895 Wait 299 | . 10 32 . 257 Move 2069 | 4 687 563 209 606 Hop . | . . . . . Pick Up 29 | . 25 . 1 3 Fast Attach . | . . . . . Attach 4 | . 3 . . 1 Detach . | . . . . . Swap 8 | 2 4 . . 2 Drop 18 | 4 14 . . . Fire 74 | . 47 2 . 25 Melee . | . . . . . Ram . | . . . . . Kick . | . . . . . Crush 6 | . 2 3 . 1 Escape Stasis . | . . . . . Rewire . | . . . . . Trap . | . . . . . Miscellaneous . | . . . . . Route ------- -11/Scrapyard -10/Materials (discovered 5 exits: [*Mat x3] / [*Min] / [*Sub]) -10/Mines (discovered 3 exits: [*Mat x2] / *Exi) -10/Exiles -9/Mines History --------- Turn | Location | Event 7 | -11/Scrapyard | Discovered new exit (range 3) 13 | -11/Scrapyard | Entered Materials 157 | -10/Materials | Discovered new exit (range 15) 325 | -10/Materials | Build established: Mutant 398 | -10/Materials | Discovered new exit (range 12) 726 | -10/Materials | Discovered new exit (range 15) 730 | -10/Materials | Discovered new exit (range 14) 1036 | -10/Materials | Discovered new exit (range 11) 1308 | -10/Materials | Entered Mines 1380 | -10/Mines | Assisted by bots powering up and referring to "LRC-V3" 1518 | -10/Mines | Found a damaged Exp. Sensor Array with a note attached 1624 | -10/Mines | Learned location of 2 exits from Materials 1699 | -10/Mines | Discovered new exit (range 14) 1741 | -10/Mines | Escorted by a lone wolf Derelict 1743 | -10/Mines | Discovered new exit (range 7) 1902 | -10/Mines | Lost 4 allies 2170 | -10/Mines | Learned Materials stockpile data 2246 | -10/Mines | Deemed a non-threat by the Exiles lab entrance 2246 | -10/Mines | Discovered new exit (range 5) 2252 | -10/Mines | Entered Exiles 2291 | -10/Exiles | Met 8R-AWN 2318 | -10/Exiles | Met EX-HEX 2369 | -10/Exiles | Met EX-BIN 2392 | -10/Exiles | Aligned with FarCom system 2393 | -10/Exiles | Given EX-Vault access code 2430 | -10/Exiles | Opened EX-Vault 2440 | -10/Exiles | Found Cloak of Protection 2473 | -10/Exiles | Warned to stay clear of 0b10 Research branches 2519 | -10/Exiles | Met EX-DEC 2575 | -10/Exiles | Discovered new exit (range 10) 2588 | -10/Exiles | Left Exiles lab with Cloak of Protection 2588 | -10/Exiles | Entered Mines 2653 | -9/Mines | Received a Rocket Launcher from a helpful Derelict 2980 | -9/Mines | Assembled infested the area 2985 | -9/Mines | Assisted by a Guerilla fighting off Assembled 3147 | -9/Mines | Core integrity fell below 50% 3175 | -9/Mines | Destroyed 15 combat bots 3186 | -9/Mines | Learned location of Zion (-6) 3715 | -9/Mines | Found a hidden stash of uninstalled traps 3744 | -9/Mines | A weapon hastily lodged in a ceiling crevice suddenly fell to the ground 3877 | -9/Mines | Core integrity fell below 20% 3881 | -9/Mines | Destroyed by D-53 Grenadier with Mini Grenade Launcher Last Messages --------------- 03261_ U-05 Engineer builds a Wall. 03366_ U-05 Engineer lays Concrete. 03369_ U-05 Engineer builds a Wall. 03378_ U-05 Engineer lays Concrete. 03382_ U-05 Engineer builds a Wall. 03463_ K-01 Serf collects debris. 03497_ Acquired 3 matter. 03553_ Acquired 56 matter. 03559_ Acquired 30 matter. 03661_ Acquired 54 matter. 03666_ Acquired Lgt. Treads. 03715_ A stash of uninstalled traps is collected here! 03744_ A Mak. Axe has been hastily shoved under some rubble with a note attached: "Chop chop!" 03877_ The unstable cave ceiling collapses. 03879_ Lgt. Treads destroyed. 03879_ Lgt. Nuclear Core destroyed. 03880_ Shotgun destroyed. 03881_ The unstable cave ceiling collapses. Map ----- +----------------------------------------------------+ | #### ###?# # ##????##= % ## | | #??####???# #######% #### | | #?????##### ######### ##?## | | #?????# ##########???????# #???## | | #?????# ##????????#####??# #????## | | #????## ##??????## ##?## ##?????## | | #????# ######## ##### ##??????# | | ####????# ## ####???? | | ???####?### ## ! ##??? | | ??## ##??# ### =%% #### ##?? | | ??# #### # " = % #??# ### | | ??# # ### %* % ## ##??# | | ??# ##??## %### ####???## | | ??## ####???## #?#####???????## | | ???# ##?????# #??????????????########### | | ??## ##????# ##????????????????????????? | | ??# #????# ###?????????????????????????? | | ??# #???## ##???????####????????????????? | | ?## ##??## #???????? ##???????????????? | | ## ###### #??????? ###?????????????? | | ##?###### ####??????????? | | ##?## ???????????? | | % ####### ##?## # d #?????????????? | | # #####?????####?## #??????????????? | | # ##????????????### d #??????????????? | | # #?????????##### @ #??????????????? | | ##???????## #???????????????? | | ##??????# ##???????????????? | | #?????## ## # ###????????????????? | | % #????## ##### # #??????????????????? | | ##???## ##???####### #??????????????????? | | ###????# #####????????????#??????????????????? | | ##??????# ##???????????????????????????????????? | | ##??????## #????????????????????????????????????? | | #???????# ##???????????????????????????????????? | | #??###### #####???????????????????????????????? | | #### / ##??????????????????????????????? | | #??????????????????????????????? | | #??????????????????????????????? | | ### ##??????????????????????????????? | | ??## ####### ##???????????????????????????????? | | ???#####??????###????????????????????????????????? | | ?????????????????????????????????????????????????? | | | | | | | | | | | | | | | +----------------------------------------------------+ Best States ------------- Heat Dissipation 39 Energy Generation 14 Energy Capacity 250 Matter Stores 300 Matter Capacity 300 Sight Range 16 Terrain Scan Density 10 Evasion (%) 40 Recoil Reduction 2 Item Schematics ----------------- None Robot Schematics ------------------ None Fabricated ------------ Nothing Repaired ---------- Nothing Studied --------- None Alien Tech Used ----------------- None Achievements -------------- None Challenges ------------ None Game ------ Seed TractorLightCharge Manual? 0 Play Time 00:17:43 Cumulative 70.9 hours Start 2026.08.02 @ 17:16:56 End 2026.08.02 @ 17:37:04 Sessions 1 Manual Loads 0 Difficulty Rogue Special Mode None Game No. 294 Rogue 249 Adventurer 45 Explorer 0 Win Type - Total 3 Types 3/0/0/0/0/0/0/0/0/0 Lore% 68 Gallery% 48 Achievement% 48 Wizard Run 0 Options --------- Layout 1 ASCII 0 Keyboard 0 Movement Numpad Keybinds 0 Fullscreen 1 Font 24/Smallcaps Map View 50x35 Zoom Use 0% Tactical HUD 1 Map Filters NONE Filters NONE Steam 1 RUN: 77e1ee8e-f3d2-489e-b430-9d43f7eb1bdc